bitfinex-derivatives/quotes_SOLF0:USTF0_20250413
["timestamp","ask_amount","ask_price","bid_price","bid_amount"]
[1744568161830,0.05747024,131.74,131.72,7.64785926]
[1744568162032,0.05747024,131.74,131.72,0.05405926]
[1744568163327,7.65057024,131.74,131.72,0.05405926]
[1744568163927,7.5934,131.73,131.72,0.05405926]
[1744568164430,7.5946,131.71,131.66,2.025]
[1744568165125,38.76,131.72,131.66,2.025]
[1744568165328,13.50086682,131.71,131.59,19.75516682]
[1744568165523,13.50086682,131.71,131.61,13.50086682]
[1744568165524,0.04939231,131.66,131.61,13.50086682]
[1744568165731,0.04939231,131.66,131.64,0.05714776]
[1744568165931,0.04939231,131.66,131.65,7.598]
[1744568167133,0.04939231,131.66,131.64,7.65514776]
[1744568167329,0.04939231,131.66,131.64,0.05714776]
[1744568168533,7.64709231,131.66,131.64,0.05714776]
[1744568169129,7.598,131.65,131.64,0.05714776]
[1744568169335,21.09886682,131.65,131.64,0.05714776]
[1744568170436,2.02679231,131.66,131.64,0.05714776]
[1744568172638,13.50086682,131.65,131.64,0.05714776]
[1744568173335,13.50086682,131.65,131.56,1.9493]
[1744568173531,38.78,131.64,131.56,1.9493]
[1744568173834,38.78,131.64,131.56,15.45016682]
[1744568174436,0.05012474,131.61,131.59,0.05206875]
[1744568174632,38.78,131.64,131.59,0.05206875]
[1744568175135,38.78,131.67,131.63,7.5991]
[1744568175534,38.78,131.67,131.6,15.48096682]
[1744568175842,0.05285561,131.65,131.62,0.05079895]
[1744568176141,0.05285561,131.65,131.64,7.5982]
[1744568178837,38.78,131.69,131.62,13.55166577]
[1744568179345,38.78,131.69,131.67,7.5965]
[1744568180041,38.83286288,131.69,131.67,7.65292203]
[1744568181044,38.83286288,131.69,131.68,7.5962]
[1744568181544,38.83286288,131.69,131.67,0.05642203]
[1744568181745,38.83286288,131.69,131.67,7.65292203]
[1744568182047,38.83286288,131.69,131.67,0.05642203]
[1744568182847,0.05286288,131.69,131.68,7.5962]
[1744568183243,38.78,131.72,131.67,0.05642203]
[1744568183545,52.91843,131.72,131.67,2.14542203]
[1744568183747,52.91843,131.72,131.67,0.05642203]
[1744568184637,0.05806489,131.71,131.67,0.05642203]
[1744568185246,0.05806489,131.71,131.7,7.5951]
[1744568187750,0.05806489,131.71,131.69,7.5955]
[1744568188450,0.05806489,131.71,131.68,7.5961]
[1744568188750,38.69806489,131.71,131.68,7.5961]
[1744568189051,38.69806489,131.71,131.69,7.5956]
[1744568189247,38.69806489,131.71,131.67,0.05642203]
[1744568189452,38.69806489,131.71,131.68,7.5959]
[1744568189753,38.69806489,131.71,131.67,0.05642203]
[1744568190155,38.69806489,131.71,131.68,7.5959]
[1744568190455,38.69806489,131.71,131.67,0.05642203]
[1744568190657,13.50086682,131.7,131.67,0.05642203]
[1744568190955,13.50086682,131.68,131.57,38.64]
[1744568191157,13.50086682,131.66,131.63,7.5989]
[1744568191456,52.14086682,131.66,131.63,7.5989]
[1744568192158,38.69382867,131.66,131.63,0.05606763]
[1744568192663,38.69382867,131.66,131.65,7.598]
[1744568193355,38.69382867,131.66,131.64,7.5985]
[1744568193558,38.69382867,131.66,131.63,0.05606763]
[1744568194360,38.69382867,131.66,131.65,7.598]
[1744568195663,0.05382867,131.66,131.65,7.598]
[1744568196562,2.867e-05,131.66,131.65,7.598]
[1744568196759,14.13843,131.72,131.65,3.25870004]
[1744568196962,14.13843,131.72,131.66,3.25870004]
[1744568197165,14.13843,131.72,131.64,13.50086682]
[1744568197462,14.13843,131.72,131.65,3.25823751]
[1744568197663,14.13843,131.72,131.66,3.25823751]
[1744568197866,0.04805629,131.7,131.67,3.31470944]
[1744568198166,0.04805629,131.7,131.68,3.25796997]
[1744568198361,0.04805629,131.7,131.68,4.1277]
[1744568198865,14.13843,131.72,131.68,17.62856682]
[1744568199056,14.13843,131.72,131.69,3.25736847]
[1744568199254,14.13843,131.72,131.7,3.25736847]
[1744568199464,14.13843,131.72,131.71,7.5945]
[1744568202364,14.13843,131.72,131.7,7.65142815]
[1744568202863,52.77843,131.72,131.7,0.05652815]
[1744568203067,66.27929682,131.72,131.61,17.65356682]
[1744568203269,13.50086682,131.68,131.62,3.25896362]
[1744568203570,7.597,131.67,131.63,7.5988]
[1744568203764,52.14086682,131.68,131.63,7.5988]
[1744568204365,0.04938336,131.67,131.64,0.05705879]
[1744568207868,0.04938336,131.67,131.64,7.65555879]
[1744568208070,13.50086682,131.66,131.64,0.05705879]
[1744568208469,2.01398336,131.67,131.64,0.05705879]
[1744568209163,7.5974,131.66,131.64,0.05705879]
[1744568209469,2.01398336,131.67,131.64,0.05705879]
[1744568209668,7.598,131.65,131.64,0.05705879]
[1744568211770,7.5976,131.66,131.64,0.05705879]
[1744568212168,2.01398336,131.67,131.64,0.05705879]
[1744568212470,7.5991,131.64,131.53,1.32226381]
[1744568212665,7.5991,131.64,131.56,9.07755559]
[1744568212865,46.2582,131.65,131.57,3.18035559]
[1744568213065,38.66,131.65,131.58,3.18035559]
[1744568213365,38.66,131.65,131.59,7.6011]
[1744568213566,7.65123254,131.63,131.6,0.05549204]
[1744568213872,0.05183254,131.63,131.6,0.05549204]
[1744568214067,7.6003,131.61,131.6,0.05549204]
[1744568214763,46.2603,131.61,131.6,0.05549204]
[1744568217173,46.2603,131.61,131.53,40.5897]
[1744568217174,7.6034,131.56,131.51,3.9675]
[1744568217374,13.50086682,131.59,131.51,3.9675]
[1744568217774,13.50086682,131.59,131.53,7.6046]
[1744568218074,13.50086682,131.57,131.51,3.9675]
[1744568218271,13.55533013,131.55,131.53,0.05102829]
[1744568218475,0.05446331,131.55,131.53,0.05102829]
[1744568218773,13.50086682,131.57,131.53,0.05102829]
[1744568218976,0.05572635,131.55,131.53,0.05102829]
[1744568220676,13.55659317,131.55,131.53,0.05102829]
[1744568221172,7.6043,131.54,131.53,0.05102829]
[1744568221374,52.08086682,131.54,131.47,4.1119]
[1744568221569,13.50086682,131.52,131.42,38.58]
[1744568221775,13.50086682,131.5,131.41,2.0637]
[1744568221977,38.58,131.49,131.41,2.0637]
[1744568222171,7.6088,131.47,131.43,7.6106]
[1744568222575,0.05167734,131.46,131.44,0.05617019]
[1744568222772,0.05167734,131.46,131.45,7.6095]
[1744568223075,52.08086682,131.52,131.44,0.05617019]
[1744568223277,13.50086682,131.5,131.44,0.05617019]
[1744568223476,13.50086682,131.5,131.41,15.56456682]
[1744568223775,7.6069,131.5,131.45,7.609]
[1744568224173,0.05711358,131.49,131.46,0.05065134]
[1744568225075,7.6084,131.47,131.46,0.05065134]
[1744568225275,0.05711358,131.49,131.46,0.05065134]
[1744568225475,7.66451358,131.49,131.46,0.05065134]
[1744568225776,0.05711358,131.49,131.46,0.05065134]
[1744568226076,7.6079,131.48,131.46,0.05065134]
[1744568226673,7.6084,131.47,131.46,0.05065134]
[1744568227277,7.6108,131.43,131.35,38.6]
[1744568227576,13.50086682,131.43,131.35,3.9526]
[1744568228078,7.6123,131.41,131.36,7.6144]
[1744568228279,13.50086682,131.41,131.32,38.6]
[1744568228472,38.65226334,131.4,131.37,0.05710544]
[1744568228776,38.6,131.4,131.37,0.05710544]
[1744568228966,38.64897227,131.4,131.37,0.05710544]
[1744568229166,7.613,131.39,131.37,0.05710544]
[1744568229371,13.50086682,131.39,131.37,0.05710544]
[1744568229571,38.64897227,131.4,131.37,0.05710544]
[1744568230180,13.50086682,131.39,131.31,2.1101]
[1744568230372,13.50086682,131.37,131.28,4.0884]
[1744568230679,40.06,131.36,131.29,13.50086682]
[1744568230879,40.06,131.37,131.33,7.6161]
[1744568231078,40.06,131.37,131.29,13.50086682]
[1744568231274,0.05680636,131.36,131.34,0.04865974]
[1744568231477,13.50086682,131.35,131.26,366.1101]
[1744568231774,13.50086682,131.33,131.26,2.1101]
[1744568231979,21.11906682,131.31,131.26,9.7303]
[1744568232169,13.50086682,131.31,131.26,2.1101]
[1744568232373,13.50086682,131.33,131.26,2.1101]
[1744568232573,40.06,131.33,131.26,2.1101]
[1744568232774,0.0581848,131.31,131.28,0.05759603]
[1744568234783,7.6186,131.3,131.28,0.05759603]
[1744568234973,0.0581848,131.31,131.28,0.05759603]
[1744568235373,0.0581848,131.31,131.29,7.6185]
[1744568235685,0.0581848,131.31,131.28,0.05759603]
[1744568236280,40.08,131.36,131.28,0.05759603]
[1744568236481,7.6154,131.35,131.3,7.6178]
[1744568236785,40.08,131.36,131.25,61.90785566]
[1744568236994,40.08,131.36,131.28,21.82785566]
[1744568237189,25.91555566,131.4,131.28,21.82785566]
[1744568237190,40.08,131.39,131.29,44.0586]
[1744568237382,0.05549594,131.33,131.31,0.05286427]
[1744568237580,47.6932,131.39,131.35,7.6153]
[1744568237878,47.6932,131.39,131.29,44.0586]
[1744568238076,40.08,131.39,131.29,44.0586]
[1744568238679,47.6934,131.39,131.29,44.0586]
[1744568238885,0.0525837,131.35,131.33,0.05673702]
[1744568241688,41.5125837,131.35,131.33,0.05673702]
[1744568241885,41.5125837,131.35,131.26,2.1127]
[1744568242088,21.82785566,131.32,131.17,21.82785566]
[1744568242289,41.46,131.31,131.17,385.82785566]
[1744568242489,7.6184,131.3,131.18,1.32596685]
[1744568242687,41.46,131.31,131.18,1.32596685]
[1744568242889,45.5409,131.31,131.19,1.9337]
[1744568243184,0.05825126,131.26,131.23,0.05752628]
[1744568243385,7.6215,131.25,131.2,7.6237]
[1744568243587,41.51825126,131.26,131.18,1.9337]
[1744568243793,41.46,131.26,131.23,0.05795261]
[1744568243994,0.04866796,131.23,131.18,1.9337]
[1744568244194,41.46,131.26,131.18,1.9337]
[1744568244488,0.05094215,131.22,131.19,0.05465172]
[1744568244996,41.51094215,131.22,131.19,0.05465172]
[1744568245293,7.6235,131.21,131.19,0.05465172]
[1744568245494,41.51094215,131.22,131.19,0.05465172]
[1744568245788,7.6238,131.21,131.19,0.05465172]
[1744568246488,41.51094215,131.22,131.19,0.05465172]
[1744568248096,49.13424215,131.22,131.19,0.05465172]
[1744568248601,41.51094215,131.22,131.19,0.05465172]
[1744568249298,41.51094215,131.22,131.2,7.6235]
[1744568249598,41.51094215,131.22,131.19,0.05465172]
[1744568249795,41.51094215,131.22,131.2,7.6237]
[1744568249994,0.05094215,131.22,131.19,0.05465172]
[1744568250495,0.05094215,131.22,131.21,7.6235]
[1744568251401,41.48,131.25,131.2,1.949]
[1744568251601,41.48,131.29,131.2,1.949]
[1744568252008,7.6196,131.28,131.2,1.949]
[1744568252301,41.48,131.29,131.2,1.949]
[1744568252504,0.05825987,131.25,131.23,7.67031026]
[1744568253604,0.05825987,131.25,131.24,7.6217]
[1744568254902,41.48,131.33,131.23,0.04831026]
[1744568255205,43.5376,131.33,131.21,4.1309]
[1744568255406,7.6195,131.28,131.21,4.1309]
[1744568255605,41.48,131.29,131.21,4.1309]
[1744568256109,0.04857065,131.26,131.24,0.05456482]
[1744568257103,43.5376,131.33,131.28,7.6192]
[1744568257309,41.48,131.33,131.25,21.82785566]
[1744568258114,7.6172,131.32,131.28,7.619]
[1744568258307,0.04942702,131.3,131.28,0.05137268]
[1744568260212,0.04942702,131.3,131.28,7.67047268]
[1744568260909,0.04942702,131.3,131.29,7.6188]
[1744568261103,0.04942702,131.3,131.28,0.05137268]
[1744568264211,0.04942702,131.3,131.29,7.6188]
[1744568264611,43.4954,131.37,131.28,0.05137268]
[1744568264812,7.6157,131.35,131.31,7.6173]
[1744568265013,7.6157,131.35,131.25,21.82785566]
[1744568265316,49.0942,131.37,131.34,7.6158]
[1744568265616,41.48,131.37,131.28,63.30785566]
[1744568265813,41.53838344,131.37,131.34,7.6648549]
[1744568266017,41.53711483,131.37,131.34,7.66747351]
[1744568267324,41.53711483,131.37,131.35,7.6152]
[1744568267523,0.05711483,131.37,131.34,0.05187351]
[1744568267921,0.05711483,131.37,131.36,7.6147]
[1744568268223,41.48,131.41,131.34,0.05187351]
[1744568268418,14.10003,131.37,131.34,0.05187351]
[1744568268617,14.10003,131.37,131.35,7.6153]
[1744568269124,14.10003,131.37,131.36,7.6147]
[1744568269324,14.15703916,131.37,131.36,7.6147]
[1744568269524,14.15703916,131.37,131.34,0.05187351]
[1744568269728,7.6148,131.36,131.34,0.05187351]
[1744568269927,14.15703916,131.37,131.34,0.05187351]
[1744568270226,14.15703916,131.37,131.34,7.66747351]
[1744568271433,14.15703916,131.37,131.35,7.6152]
[1744568271727,14.15703916,131.37,131.34,0.05187351]
[1744568271928,14.15703916,131.37,131.35,7.6153]
[1744568272121,14.15703916,131.37,131.34,0.05187351]
[1744568272321,21.77153916,131.37,131.34,0.05187351]
[1744568273724,21.77153916,131.37,131.34,7.66767351]
[1744568275326,21.77153916,131.37,131.34,0.05187351]
[1744568276631,7.6148,131.36,131.34,0.05187351]
[1744568277328,21.77143916,131.37,131.34,7.66777351]
[1744568278430,21.77143916,131.37,131.34,0.05187351]
[1744568279130,21.77143916,131.37,131.34,7.66747351]
[1744568279924,21.77143916,131.37,131.34,0.05187351]
[1744568280129,14.15703916,131.37,131.35,7.6153]
[1744568280930,21.77123916,131.37,131.35,7.6153]
[1744568281127,14.15703916,131.37,131.34,0.05187351]
[1744568281629,7.6152,131.36,131.34,0.05187351]
[1744568281834,14.15703916,131.37,131.34,0.05187351]
[1744568282334,7.6153,131.35,131.34,0.05187351]
[1744568282525,14.15703916,131.37,131.34,0.05187351]
[1744568283232,40.6,131.36,131.34,0.05187351]
[1744568283432,21.82785566,131.35,131.23,6.269]
[1744568283728,23.82905566,131.35,131.24,43.77206549]
[1744568283929,7.62,131.27,131.25,7.6209]
[1744568284128,7.62,131.27,131.23,6.269]
[1744568284325,40.6,131.3,131.23,6.269]
[1744568284527,0.05762158,131.26,131.24,0.05525464]
[1744568285236,0.05762158,131.26,131.25,7.6211]
[1744568285534,40.6,131.3,131.24,0.05525464]
[1744568285729,40.6,131.34,131.25,21.82785566]
[1744568285930,7.6167,131.33,131.25,21.82785566]
[1744568286127,40.6,131.34,131.25,21.82785566]
[1744568286634,0.04876882,131.31,131.3,7.6179]
[1744568287033,7.6148,131.36,131.32,7.6167]
[1744568287234,14.10003,131.37,131.29,6.3327]
[1744568287537,7.6148,131.36,131.29,6.3327]
[1744568288037,14.10003,131.37,131.29,6.3327]
[1744568288237,0.05806316,131.34,131.33,7.616]
[1744568289538,0.05806316,131.34,131.32,0.05080369]
[1744568290551,0.05806316,131.34,131.33,7.6165]
[1744568291438,0.05806316,131.34,131.32,0.05080369]
[1744568291634,0.05806316,131.34,131.24,39.2]
[1744568291833,39.2,131.33,131.22,25.81265566]
[1744568292040,39.2,131.33,131.23,3.17696094]
[1744568292243,7.6186,131.3,131.27,7.6199]
[1744568292641,39.2,131.33,131.22,27.92425566]
[1744568292837,7.6194,131.29,131.27,0.04965108]
[1744568293442,0.05838459,131.3,131.27,0.04965108]
[1744568295246,7.67698459,131.3,131.27,7.66955108]
[1744568295542,0.05838459,131.3,131.27,0.04965108]
[1744568296144,39.2,131.29,131.18,39.2]
[1744568296446,7.6226,131.23,131.19,7.6244]
[1744568296645,7.6226,131.23,131.16,6.1381]
[1744568296840,39.2,131.25,131.17,3.19387503]
[1744568297041,3.9692,131.28,131.18,3.19387503]
[1744568297242,43.1692,131.28,131.19,3.19387503]
[1744568297545,0.04950091,131.24,131.22,0.05152056]
[1744568298948,0.04950091,131.24,131.22,7.67392056]
[1744568299344,0.04950091,131.24,131.22,0.05152056]
[1744568300150,0.04950091,131.24,131.23,7.6223]
[1744568300751,7.62,131.27,131.23,7.6219]
[1744568301249,7.6197,131.28,131.24,7.6213]
[1744568301451,39.2,131.31,131.2,21.82785566]
[1744568301646,39.2,131.31,131.21,3.18928644]
[1744568301847,0.04945099,131.27,131.24,0.05337234]
[1744568302148,39.2,131.31,131.24,0.05337234]
[1744568302149,2.0438,131.33,131.24,0.05337234]
[1744568302450,2.0438,131.33,131.23,61.04785566]
[1744568302639,2.0438,131.33,131.24,3.18745379]
[1744568302844,2.0438,131.33,131.25,3.18711378]
[1744568303147,39.22,131.34,131.23,61.04785566]
[1744568303347,0.05520097,131.3,131.28,0.05071092]
[1744568303741,0.05520097,131.3,131.29,7.6184]
[1744568303946,2.0691,131.36,131.28,0.05071092]
[1744568304146,2.0691,131.36,131.27,39.22]
[1744568304347,2.0691,131.36,131.24,39.22]
[1744568304545,21.82785566,131.34,131.23,39.22]
[1744568304745,7.6185,131.3,131.25,7.6208]
[1744568305048,0.05299101,131.29,131.26,0.0501901]
[1744568307350,0.05299101,131.29,131.28,7.6194]
[1744568308250,0.05299101,131.29,131.27,7.6197]
[1744568309252,0.05299101,131.29,131.28,7.6194]
[1744568309650,0.05299101,131.29,131.26,0.0501901]
[1744568309850,7.67189101,131.29,131.26,0.0501901]
[1744568310049,39.2,131.28,131.26,0.0501901]
[1744568310348,7.6219,131.24,131.2,364.0]
[1744568310545,7.6219,131.24,131.2,7.6237]
[1744568310749,4.1655,131.27,131.18,6.3119]
[1744568310947,4.1655,131.27,131.19,3.19207601]
[1744568311141,2.0844,131.27,131.23,7.6219]
[1744568311344,39.2,131.28,131.23,7.6219]
[1744568311546,0.05561117,131.26,131.24,0.04823282]
[1744568311945,7.67631117,131.26,131.24,0.04823282]
[1744568312254,0.05561117,131.26,131.24,0.04823282]
[1744568314251,7.6211,131.25,131.18,6.3119]
[1744568314457,61.02785566,131.28,131.18,4.1943]
[1744568314756,2.1272,131.25,131.15,385.82785566]
[1744568314956,2.1272,131.25,131.16,3.18946439]
[1744568315156,2.1272,131.25,131.17,3.18946439]
[1744568315358,7.6226,131.23,131.2,7.624]
[1744568315558,0.0493292,131.22,131.2,0.05856774]
[1744568315856,0.0493292,131.22,131.21,7.6235]
[1744568316262,39.2,131.28,131.2,0.05856774]
[1744568316455,39.2,131.28,131.18,61.04785566]
[1744568316655,39.2,131.28,131.19,3.18841997]
[1744568316964,39.2,131.28,131.16,61.04785566]
[1744568317259,61.02785566,131.28,131.17,3.19018546]
[1744568317454,0.05470096,131.23,131.14,1.9896]
[1744568317663,39.22,131.22,131.14,1.9896]
[1744568317855,0.05862355,131.2,131.14,1.9896]
[1744568318052,0.05862355,131.2,131.15,3.1945446]
[1744568318256,0.05862355,131.2,131.14,1.9896]
[1744568318458,0.05862355,131.2,131.18,7.6248]
[1744568318658,0.05862355,131.2,131.14,1.9896]
[1744568318859,0.05862355,131.2,131.18,0.05137164]
[1744568319462,0.05862355,131.2,131.19,7.6246]
[1744568324859,41.4653,131.29,131.19,12.87818587]
[1744568325055,41.4653,131.29,131.2,25.01814153]
[1744568325361,7.6197,131.28,131.24,7.6213]
[1744568325864,49.0844,131.29,131.25,7.6207]
[1744568326167,0.0579881,131.27,131.25,7.67326715]
[1744568326764,0.0579881,131.27,131.25,0.05256715]
[1744568327458,0.0579881,131.27,131.26,7.6206]
[1744568327963,0.0579881,131.27,131.25,7.67346715]
[1744568328159,0.0579881,131.27,131.25,0.05256715]
[1744568329163,0.0579881,131.27,131.26,7.6206]
[1744568329763,39.34,131.34,131.25,39.39256715]
[1744568329963,4.0692,131.36,131.25,39.34]
[1744568330163,7.6167,131.33,131.25,39.34]
[1744568330467,7.6167,131.33,131.29,7.6187]
[1744568330654,7.6171,131.32,131.25,39.34]
[1744568330957,7.66899735,131.32,131.26,3.18761287]
[1744568331265,7.66899735,131.32,131.27,0.05118813]
[1744568331565,0.05189735,131.32,131.27,0.05118813]
[1744568331863,0.05189735,131.32,131.29,7.6185]
[1744568332060,0.05189735,131.32,131.27,0.05118813]
[1744568332464,0.05189735,131.32,131.28,3.18876924]
[1744568332665,0.05189735,131.32,131.27,0.05118813]
[1744568332867,0.05189735,131.32,131.28,3.18873349]
[1744568333161,0.05189735,131.32,131.28,2.0464]
[1744568333360,14.10003,131.37,131.32,7.6166]
[1744568333766,7.6151,131.36,131.32,7.6166]
[1744568334370,0.04861777,131.35,131.33,0.05548337]
[1744568334867,7.66401777,131.35,131.33,0.05548337]
[1744568336267,7.6159,131.34,131.33,0.05548337]
[1744568336467,39.34,131.34,131.24,4.0859]
[1744568336667,39.34,131.34,131.26,3.1926533]
[1744568336868,7.6186,131.3,131.26,7.6201]
[1744568337271,1.941,131.33,131.24,4.0859]
[1744568337466,21.82785566,131.32,131.27,0.05136267]
[1744568337670,0.05481129,131.3,131.27,0.05136267]
[1744568337870,7.6188,131.29,131.27,0.05136267]
[1744568339173,7.67321129,131.3,131.27,0.05136267]
[1744568339571,0.05481129,131.3,131.27,0.05136267]
[1744568339773,0.05481129,131.3,131.27,7.67076267]
[1744568341275,7.67311129,131.3,131.27,7.67076267]
[1744568341775,7.67311129,131.3,131.27,0.05136267]
[1744568341965,0.05481129,131.3,131.27,0.05136267]
[1744568342368,7.6192,131.29,131.27,0.05136267]
[1744568343373,0.05481129,131.3,131.27,0.05136267]
[1744568343876,7.6191,131.29,131.27,0.05136267]
[1744568344078,0.05481129,131.3,131.27,0.05136267]
[1744568344579,0.05481129,131.3,131.27,7.67106267]
[1744568345579,0.05481129,131.3,131.28,7.619]
[1744568345785,0.05481129,131.3,131.27,0.05136267]
[1744568347080,7.6194,131.28,131.27,0.05136267]
[1744568348882,9.7622,131.29,131.27,0.05136267]
[1744568349090,2.1433,131.29,131.27,0.05136267]
[1744568349490,2.1433,131.29,131.28,7.6194]
[1744568349689,39.39481129,131.3,131.28,7.6194]
[1744568349890,0.05481129,131.3,131.28,7.6194]
[1744568350887,0.05481129,131.3,131.27,0.05136267]
[1744568351186,38.72,131.29,131.27,0.05136267]
[1744568351385,7.6194,131.28,131.27,0.05136267]
[1744568351591,38.72,131.29,131.27,0.05136267]
[1744568351988,46.3393,131.29,131.27,0.05136267]
[1744568352192,38.72,131.29,131.27,0.05136267]
[1744568352992,46.3391,131.29,131.27,0.05136267]
[1744568353289,38.72,131.29,131.27,0.05136267]
[1744568353495,38.72,131.29,131.28,7.6194]
[1744568353793,0.05481129,131.3,131.27,0.05136267]
[1744568353990,0.05481129,131.3,131.28,7.6191]
[1744568354193,0.05481129,131.3,131.27,0.05136267]
[1744568355294,7.67311129,131.3,131.27,0.05136267]
[1744568355595,0.05481129,131.3,131.27,0.05136267]
[1744568356394,7.6191,131.29,131.27,0.05136267]
[1744568356891,0.05481129,131.3,131.28,7.6194]
[1744568357195,0.05481129,131.3,131.27,0.05136267]
[1744568358696,21.88266695,131.3,131.27,0.05136267]
[1744568359494,7.6194,131.28,131.27,0.05136267]
[1744568359697,46.3394,131.28,131.27,0.05136267]
[1744568361792,38.72,131.28,131.22,2.1164]
[1744568361997,38.72,131.28,131.21,4.1841]
[1744568362197,7.622,131.24,131.2,7.6239]
[1744568362798,7.67370962,131.23,131.21,0.0554536]
[1744568363700,0.05130962,131.23,131.21,0.0554536]
[1744568363893,0.05130962,131.23,131.21,7.6787536]
[1744568364100,0.05130962,131.23,131.21,0.0554536]
[1744568364700,0.05130962,131.23,131.22,7.6229]
[1744568365002,38.74,131.27,131.22,7.6229]
[1744568365003,38.74,131.27,131.26,7.6206]
[1744568365201,642.16,131.3,131.21,38.74]
[1744568365494,38.74,131.31,131.23,21.82785566]
[1744568365699,1.9696,131.34,131.26,21.82785566]
[1744568365900,38.74,131.35,131.26,60.56785566]
[1744568366102,145.078651,131.38,131.27,3.18948845]
[1744568366304,0.0515163,131.31,131.3,7.6182]
[1744568366495,145.078651,131.38,131.3,3.18902776]
[1744568366695,145.078651,131.38,131.33,7.6162]
[1744568366899,0.05123062,131.33,131.26,60.56785566]
[1744568367202,145.078651,131.38,131.27,3.18874144]
[1744568367403,145.078651,131.38,131.33,7.6165]
[1744568367903,0.04816619,131.36,131.34,0.05679394]
[1744568368602,0.04816619,131.36,131.34,7.67239394]
[1744568368800,0.04816619,131.36,131.34,0.05679394]
[1744568368994,0.04816619,131.36,131.35,7.6153]
[1744568374206,603.2,131.48,131.34,0.05679394]
[1744568374403,21.82785566,131.45,131.31,21.82785566]
[1744568374602,21.82785566,131.45,131.32,3.17628803]
[1744568374895,21.82785566,131.45,131.33,7.14142755]
[1744568375095,21.82785566,131.45,131.33,3.9664]
[1744568375296,0.05447561,131.4,131.33,3.9664]
[1744568375507,0.05447561,131.4,131.39,7.6125]
[1744568380810,7.561e-05,131.4,131.39,7.6125]
[1744568381111,7.561e-05,131.4,131.39,11.5713]
[1744568382203,603.2,131.48,131.46,7.6086]
[1744568382512,38.68,131.49,131.39,3.9588]
[1744568382906,38.68,131.49,131.4,21.82785566]
[1744568383107,38.68,131.53,131.43,21.82785566]
[1744568383312,602.94,131.54,131.49,7.6068]
[1744568383507,641.62,131.54,131.49,7.6068]
[1744568383810,0.0556815,131.53,131.5,7.66175569]
[1744568384006,0.0556815,131.53,131.43,60.50785566]
[1744568384007,641.62,131.54,131.43,60.50785566]
[1744568384208,0.05464765,131.53,131.5,0.04806432]
[1744568384400,38.68,131.54,131.43,60.50785566]
[1744568384603,0.05607393,131.53,131.5,0.05531592]
[1744568384805,38.68,131.57,131.47,44.8115]
[1744568385102,0.04851378,131.53,131.5,0.0554664]
[1744568387112,21.82785566,131.51,131.42,1.9441]
[1744568387411,7.6076,131.49,131.46,7.6088]
[1744568388210,7.6079,131.48,131.46,0.04943065]
[1744568389414,7.6084,131.47,131.46,0.04943065]
[1744568389614,0.05274367,131.49,131.46,0.04943065]
[1744568390214,7.6081,131.48,131.46,0.04943065]
[1744568390515,0.05274367,131.49,131.46,0.04943065]
[1744568391314,0.05274367,131.49,131.47,7.6084]
[1744568391506,0.05274367,131.49,131.46,0.04943065]
[1744568391912,7.6084,131.47,131.46,0.04943065]
[1744568392510,7.6081,131.48,131.46,0.04943065]
[1744568393014,0.05274367,131.49,131.46,0.04943065]
[1744568393715,7.6084,131.47,131.46,0.04943065]
[1744568395115,7.6,131.47,131.35,38.66]
[1744568395316,38.66,131.46,131.36,4.1877]
[1744568396115,0.05661429,131.42,131.41,7.6114]
[1744568396316,7.61,131.45,131.41,7.6114]
[1744568396517,0.05340837,131.43,131.41,7.6114]
[1744568396712,0.05340837,131.43,131.4,0.04923705]
[1744568397116,0.05340837,131.43,131.41,7.6119]
[1744568397312,0.05340837,131.43,131.4,0.04923705]
[1744568397819,0.05340837,131.43,131.42,7.6113]
[1744568399517,0.05340837,131.43,131.41,7.6116]
[1744568400319,7.66410837,131.43,131.41,7.6116]
[1744568400515,0.05340837,131.43,131.41,7.6116]
[1744568401017,0.05340837,131.43,131.42,7.6113]
[1744568401518,0.05340837,131.43,131.4,0.04923705]
[1744568402119,0.05340837,131.43,131.41,7.6114]
[1744568402624,0.05340837,131.43,131.4,0.04923705]
[1744568403519,0.05340837,131.43,131.42,7.6113]
[1744568405420,0.05340837,131.43,131.41,7.6116]
[1744568405922,0.05340837,131.43,131.4,0.04923705]
[1744568406218,0.05340837,131.43,131.42,7.6113]
[1744568407417,0.05340837,131.43,131.41,7.6116]